[Event "Titled Tuesday Blitz February 22 Early 2022"]
[White "Lauridsen, Jesper Morch"]
[Black "Glavina, Pablo"]
[WhiteFideId "1401890"]
[BlackFideId "100234"]
[WhiteElo "2280"]
[BlackElo "2369"]
[Result "1/2-1/2"]
[Round "06"]
[TimeControl "180+1"]
[Date "2022.02.22"]
[WhiteClock "0:01:41"]
[BlackClock "0:00:56"]

1. e4 {[%clk 0:03:00]}  e5 {[%clk 0:02:59]} 2. Nf3 {[%clk 0:03:00]}  Nc6 {[%clk 0:03:00]} 3. Bb5 {[%clk 0:03:00]}  Nf6 {[%clk 0:03:00]} 4. O-O {[%clk 0:02:59]}  Bc5 {[%clk 0:02:53]} 5. Qe2 {[%clk 0:02:45]}  d6 {[%clk 0:02:49]} 6. Bxc6+ {[%clk 0:02:40]}  bxc6 {[%clk 0:02:49]} 7. h3 {[%clk 0:02:40]}  a5 {[%clk 0:02:46]} 8. c3 {[%clk 0:02:39]}  O-O {[%clk 0:02:39]} 9. Rd1 {[%clk 0:02:36]}  Ba6 {[%clk 0:02:37]} 10. d3 {[%clk 0:02:36]}  a4 {[%clk 0:02:30]} 11. Be3 {[%clk 0:02:32]}  Bxe3 {[%clk 0:02:18]} 12. Qxe3 {[%clk 0:02:32]}  Qb8 {[%clk 0:02:17]} 13. Qe2 {[%clk 0:02:25]}  Qb6 {[%clk 0:02:05]} 14. Na3 {[%clk 0:02:22]}  Rab8 {[%clk 0:02:02]} 15. Rab1 {[%clk 0:02:21]}  Nd7 {[%clk 0:01:57]} 16. Nh4 {[%clk 0:02:13]}  Nc5 {[%clk 0:01:52]} 17. Nf5 {[%clk 0:02:07]}  g6 {[%clk 0:01:46]} 18. Qe3 {[%clk 0:02:06]}  gxf5 {[%clk 0:00:54]} 19. Qg5+ {[%clk 0:02:05]}  Kh8 {[%clk 0:00:55]} 20. Qf6+ {[%clk 0:02:05]}  Kg8 {[%clk 0:00:55]} 21. Qg5+ {[%clk 0:01:40]}  Kh8 {[%clk 0:00:55]} 22. Qf6+ {[%clk 0:01:41]}  Kg8 {[%clk 0:00:56]} 23. Qg5+ {[%clk 0:01:41]} 1/2-1/2


[Site "https://www.chess.com"]

[Event "Titled Tuesday Blitz February 22 Early 2022"]
[White "Manelyuk, Daniil"]
[Black "Potapova, Margarita"]
[WhiteFideId "44173920"]
[BlackFideId "14126869"]
[WhiteElo "2222"]
[BlackElo "2209"]
[Result "0-1"]
[Round "06"]
[TimeControl "180+1"]
[Date "2022.02.22"]
[WhiteClock "0:00:05"]
[BlackClock "0:00:06"]

1. e4 {[%clk 0:03:00]}  c5 {[%clk 0:02:57]} 2. Nf3 {[%clk 0:03:00]}  d6 {[%clk 0:02:58]} 3. d4 {[%clk 0:03:00]}  cxd4 {[%clk 0:02:59]} 4. Nxd4 {[%clk 0:03:01]}  Nf6 {[%clk 0:02:59]} 5. Nc3 {[%clk 0:03:01]}  a6 {[%clk 0:03:00]} 6. f3 {[%clk 0:03:01]}  e5 {[%clk 0:03:00]} 7. Nb3 {[%clk 0:03:01]}  Be6 {[%clk 0:03:00]} 8. Be3 {[%clk 0:03:01]}  Be7 {[%clk 0:03:01]} 9. Qd2 {[%clk 0:03:02]}  O-O {[%clk 0:03:01]} 10. O-O-O {[%clk 0:03:01]}  Nbd7 {[%clk 0:02:57]} 11. g4 {[%clk 0:03:01]}  b5 {[%clk 0:02:57]} 12. g5 {[%clk 0:03:02]}  b4 {[%clk 0:02:58]} 13. Ne2 {[%clk 0:03:00]}  Ne8 {[%clk 0:02:58]} 14. f4 {[%clk 0:03:00]}  a5 {[%clk 0:02:58]} 15. f5 {[%clk 0:02:59]}  Bxb3 {[%clk 0:02:58]} 16. cxb3 {[%clk 0:02:47]}  a4 {[%clk 0:02:58]} 17. Kb1 {[%clk 0:02:44]}  axb3 {[%clk 0:02:45]} 18. Nc1 {[%clk 0:02:44]}  Nb6 {[%clk 0:02:31]} 19. Qxb4 {[%clk 0:02:35]}  bxa2+ {[%clk 0:02:18]} 20. Ka1 {[%clk 0:02:35]}  Rb8 {[%clk 0:01:56]} 21. f6 {[%clk 0:02:31]}  gxf6 {[%clk 0:01:54]} 22. gxf6 {[%clk 0:02:31]}  Bxf6 {[%clk 0:01:46]} 23. Rg1+ {[%clk 0:02:30]}  Kh8 {[%clk 0:01:46]} 24. Bh6 {[%clk 0:02:30]}  Rg8 {[%clk 0:01:43]} 25. Rxg8+ {[%clk 0:02:24]}  Kxg8 {[%clk 0:01:44]} 26. Bb5 {[%clk 0:02:20]}  Ng7 {[%clk 0:01:39]} 27. Rxd6 {[%clk 0:01:59]}  Qe7 {[%clk 0:01:39]} 28. Qc5 {[%clk 0:01:58]}  Nc8 {[%clk 0:00:57]} 29. Rd5 {[%clk 0:01:25]}  Qxc5 {[%clk 0:00:57]} 30. Rxc5 {[%clk 0:01:26]}  Ne6 {[%clk 0:00:57]} 31. Rc2 {[%clk 0:01:18]}  Nd6 {[%clk 0:00:55]} 32. Bd3 {[%clk 0:01:06]}  Nd4 {[%clk 0:00:49]} 33. Rg2+ {[%clk 0:01:04]}  Kh8 {[%clk 0:00:50]} 34. Kxa2 {[%clk 0:01:02]}  Ne8 {[%clk 0:00:30]} 35. Ne2 {[%clk 0:00:58]}  Nb3 {[%clk 0:00:27]} 36. Nc3 {[%clk 0:00:56]}  Nc5 {[%clk 0:00:27]} 37. Bc2 {[%clk 0:00:50]}  Bg7 {[%clk 0:00:27]} 38. Bxg7+ {[%clk 0:00:47]}  Nxg7 {[%clk 0:00:27]} 39. Nd5 {[%clk 0:00:48]}  Nge6 {[%clk 0:00:22]} 40. b4 {[%clk 0:00:48]}  Nd7 {[%clk 0:00:21]} 41. Ba4 {[%clk 0:00:38]}  Ra8 {[%clk 0:00:20]} 42. Ka3 {[%clk 0:00:33]}  Nd4 {[%clk 0:00:17]} 43. Rd2 {[%clk 0:00:20]}  Nf8 {[%clk 0:00:14]} 44. Nb6 {[%clk 0:00:17]}  Ra7 {[%clk 0:00:13]} 45. Nc4 {[%clk 0:00:16]}  f6 {[%clk 0:00:12]} 46. Nb2 {[%clk 0:00:11]}  Nfe6 {[%clk 0:00:12]} 47. Rd3 {[%clk 0:00:10]}  Nf4 {[%clk 0:00:12]} 48. Rg3 {[%clk 0:00:09]}  Nfe2 {[%clk 0:00:11]} 49. Rh3 {[%clk 0:00:08]}  Nf4 {[%clk 0:00:10]} 50. Rg3 {[%clk 0:00:08]}  h5 {[%clk 0:00:11]} 51. h4 {[%clk 0:00:08]}  Nfe2 {[%clk 0:00:08]} 52. Re3 {[%clk 0:00:08]}  Nf4 {[%clk 0:00:07]} 53. Rg3 {[%clk 0:00:07]}  Nfe6 {[%clk 0:00:07]} 54. Nd3 {[%clk 0:00:06]}  Nb5+ {[%clk 0:00:07]} 55. Kb3 {[%clk 0:00:06]}  Ned4+ {[%clk 0:00:08]} 56. Kc4 {[%clk 0:00:06]}  Rxa4 {[%clk 0:00:08]} 57. Nc5 {[%clk 0:00:06]}  Ra3 {[%clk 0:00:08]} 58. Rxa3 {[%clk 0:00:05]}  Nxa3+ {[%clk 0:00:09]} 59. Kd5 {[%clk 0:00:06]}  Nab5 {[%clk 0:00:09]} 60. Kc4 {[%clk 0:00:05]}  Kg7 {[%clk 0:00:09]} 61. Nd3 {[%clk 0:00:04]}  Kg6 {[%clk 0:00:08]} 62. Ne1 {[%clk 0:00:03]}  f5 {[%clk 0:00:09]} 63. exf5+ {[%clk 0:00:04]}  Kxf5 {[%clk 0:00:10]} 64. Ng2 {[%clk 0:00:03]}  Ke4 {[%clk 0:00:09]} 65. Ne1 {[%clk 0:00:03]}  Kf4 {[%clk 0:00:08]} 66. Nd3+ {[%clk 0:00:03]}  Kf5 {[%clk 0:00:09]} 67. Nc5 {[%clk 0:00:03]}  e4 {[%clk 0:00:08]} 68. Kd5 {[%clk 0:00:03]}  e3 {[%clk 0:00:08]} 69. Nd3 {[%clk 0:00:04]}  e2 {[%clk 0:00:08]} 70. Ne1 {[%clk 0:00:04]}  Kf4 {[%clk 0:00:08]} 71. Kc4 {[%clk 0:00:05]}  Ke3 {[%clk 0:00:08]} 72. Nd3 {[%clk 0:00:05]}  Kd2 {[%clk 0:00:06]} 73. Kc5 {[%clk 0:00:05]}  e1=Q {[%clk 0:00:06]} 0-1


[Site "https://www.chess.com"]

[Event "Titled Tuesday Blitz February 22 Early 2022"]
[White "Mangialardo, Tiago Carvalho"]
[Black "Berdychevskaya, Natasha"]
[WhiteFideId "2130718"]
[BlackFideId "4159322"]
[WhiteElo "2120"]
[BlackElo "1780"]
[Result "0-1"]
[Round "06"]
[TimeControl "180+1"]
[Date "2022.02.22"]
[WhiteClock "0:00:01"]
[BlackClock "0:00:13"]

1. Nf3 {[%clk 0:03:00]}  Nf6 {[%clk 0:02:45]} 2. b3 {[%clk 0:03:00]}  e6 {[%clk 0:02:28]} 3. Bb2 {[%clk 0:03:00]}  Be7 {[%clk 0:02:28]} 4. e3 {[%clk 0:03:00]}  O-O {[%clk 0:02:28]} 5. Be2 {[%clk 0:03:00]}  d5 {[%clk 0:02:27]} 6. d4 {[%clk 0:03:00]}  c5 {[%clk 0:02:26]} 7. O-O {[%clk 0:02:57]}  Nc6 {[%clk 0:02:26]} 8. c4 {[%clk 0:02:57]}  cxd4 {[%clk 0:02:24]} 9. Nxd4 {[%clk 0:02:55]}  Nxd4 {[%clk 0:02:18]} 10. Qxd4 {[%clk 0:02:49]}  dxc4 {[%clk 0:02:14]} 11. Qxc4 {[%clk 0:02:40]}  Bd7 {[%clk 0:02:02]} 12. Rd1 {[%clk 0:02:20]}  Qc8 {[%clk 0:01:55]} 13. Nd2 {[%clk 0:01:56]}  Qxc4 {[%clk 0:01:52]} 14. Nxc4 {[%clk 0:01:57]}  Bc6 {[%clk 0:01:45]} 15. Rac1 {[%clk 0:01:55]}  Rfd8 {[%clk 0:01:39]} 16. Ne5 {[%clk 0:01:39]}  Rxd1+ {[%clk 0:01:07]} 17. Bxd1 {[%clk 0:01:32]}  Bd5 {[%clk 0:01:02]} 18. f3 {[%clk 0:01:12]}  Bd6 {[%clk 0:00:47]} 19. Nc4 {[%clk 0:00:35]}  Bc5 {[%clk 0:00:42]} 20. Kf2 {[%clk 0:00:28]}  Rc8 {[%clk 0:00:37]} 21. Ke2 {[%clk 0:00:25]}  Be7 {[%clk 0:00:33]} 22. e4 {[%clk 0:00:23]}  Bxc4+ {[%clk 0:00:31]} 23. bxc4 {[%clk 0:00:19]}  Nd7 {[%clk 0:00:29]} 24. Bd4 {[%clk 0:00:11]}  b6 {[%clk 0:00:28]} 25. a4 {[%clk 0:00:08]}  Bf6 {[%clk 0:00:26]} 26. Be3 {[%clk 0:00:05]}  Nc5 {[%clk 0:00:25]} 27. Rb1 {[%clk 0:00:01]}  Kf8 {[%clk 0:00:19]} 28. g4 {[%clk 0:00:01]}  h6 {[%clk 0:00:19]} 29. g5 {[%clk 0:00:02]}  hxg5 {[%clk 0:00:19]} 30. h3 {[%clk 0:00:02]}  Ke7 {[%clk 0:00:18]} 31. Bc2 {[%clk 0:00:02]}  Kd6 {[%clk 0:00:18]} 32. Rb4 {[%clk 0:00:03]}  Kc6 {[%clk 0:00:17]} 33. f4 {[%clk 0:00:03]}  gxf4 {[%clk 0:00:15]} 34. Bxf4 {[%clk 0:00:04]}  Rd8 {[%clk 0:00:15]} 35. Ke3 {[%clk 0:00:04]}  Bd4+ {[%clk 0:00:14]} 36. Kf3 {[%clk 0:00:04]}  e5 {[%clk 0:00:15]} 37. Bg5 {[%clk 0:00:03]}  Rd6 {[%clk 0:00:16]} 38. Be3 {[%clk 0:00:03]}  Bxe3 {[%clk 0:00:15]} 39. Kxe3 {[%clk 0:00:04]}  Rd4 {[%clk 0:00:15]} 40. Rb2 {[%clk 0:00:02]}  Rxc4 {[%clk 0:00:15]} 41. Bd1 {[%clk 0:00:01]}  Nxa4 {[%clk 0:00:15]} 42. Rd2 {[%clk 0:00:01]}  Nc3 {[%clk 0:00:13]} 0-1


[Site "https://www.chess.com"]

[Event "Titled Tuesday Blitz February 22 Early 2022"]
[White "Manukian, Artak"]
[Black "Wagner, Dennis"]
[WhiteFideId "13301373"]
[BlackFideId "24650684"]
[WhiteElo "2486"]
[BlackElo "2355"]
[Result "0-1"]
[Round "06"]
[TimeControl "180+1"]
[Date "2022.02.22"]
[WhiteClock "0:00:10"]
[BlackClock "0:00:33"]

1. e4 {[%clk 0:03:00]}  e5 {[%clk 0:02:58]} 2. Nf3 {[%clk 0:03:00]}  Nc6 {[%clk 0:02:59]} 3. d4 {[%clk 0:03:00]}  exd4 {[%clk 0:02:58]} 4. Nxd4 {[%clk 0:03:00]}  Bc5 {[%clk 0:02:57]} 5. Nxc6 {[%clk 0:02:59]}  bxc6 {[%clk 0:02:56]} 6. Bc4 {[%clk 0:02:59]}  d6 {[%clk 0:02:51]} 7. Qh5 {[%clk 0:02:52]}  Qf6 {[%clk 0:02:39]} 8. O-O {[%clk 0:02:49]}  Qg6 {[%clk 0:02:38]} 9. Qxg6 {[%clk 0:02:44]}  hxg6 {[%clk 0:02:39]} 10. Nd2 {[%clk 0:02:41]}  Nf6 {[%clk 0:02:39]} 11. Bd3 {[%clk 0:02:34]}  a5 {[%clk 0:02:03]} 12. Nc4 {[%clk 0:02:21]}  a4 {[%clk 0:02:00]} 13. Be3 {[%clk 0:02:13]}  Bxe3 {[%clk 0:01:53]} 14. Nxe3 {[%clk 0:02:14]}  g5 {[%clk 0:01:49]} 15. b3 {[%clk 0:02:03]}  Be6 {[%clk 0:01:47]} 16. f3 {[%clk 0:01:59]}  Nd7 {[%clk 0:01:47]} 17. Bc4 {[%clk 0:01:56]}  Ke7 {[%clk 0:01:42]} 18. h3 {[%clk 0:01:54]}  Rhb8 {[%clk 0:01:28]} 19. Kf2 {[%clk 0:01:49]}  Ra7 {[%clk 0:01:25]} 20. Ke2 {[%clk 0:01:42]}  Ne5 {[%clk 0:01:20]} 21. Bxe6 {[%clk 0:01:41]}  fxe6 {[%clk 0:01:16]} 22. Ng4 {[%clk 0:01:38]}  Ng6 {[%clk 0:01:16]} 23. Kd2 {[%clk 0:01:37]}  Nf4 {[%clk 0:01:14]} 24. Ne3 {[%clk 0:01:36]}  Rba8 {[%clk 0:01:13]} 25. b4 {[%clk 0:01:31]}  a3 {[%clk 0:01:14]} 26. Rab1 {[%clk 0:01:30]}  Rb7 {[%clk 0:01:13]} 27. Rb3 {[%clk 0:01:30]}  g6 {[%clk 0:01:12]} 28. Rfb1 {[%clk 0:01:28]}  e5 {[%clk 0:01:04]} 29. c4 {[%clk 0:01:20]}  Ne6 {[%clk 0:01:04]} 30. Kc3 {[%clk 0:01:09]}  Nd4 {[%clk 0:01:02]} 31. b5 {[%clk 0:01:02]}  Nxb3 {[%clk 0:00:59]} 32. Rxb3 {[%clk 0:01:02]}  cxb5 {[%clk 0:00:55]} 33. Nd5+ {[%clk 0:01:01]}  Ke6 {[%clk 0:00:54]} 34. cxb5 {[%clk 0:01:02]}  Rc8 {[%clk 0:00:49]} 35. Ne3 {[%clk 0:00:36]}  c6 {[%clk 0:00:47]} 36. b6 {[%clk 0:00:35]}  d5 {[%clk 0:00:40]} 37. Kd3 {[%clk 0:00:26]}  Ra8 {[%clk 0:00:36]} 38. exd5+ {[%clk 0:00:24]}  cxd5 {[%clk 0:00:36]} 39. Rb5 {[%clk 0:00:25]}  Rd8 {[%clk 0:00:35]} 40. Nc2 {[%clk 0:00:18]}  Rd6 {[%clk 0:00:33]} 41. Nxa3 {[%clk 0:00:17]}  Rbxb6 {[%clk 0:00:34]} 42. Rxb6 {[%clk 0:00:16]}  Rxb6 {[%clk 0:00:34]} 43. Nc2 {[%clk 0:00:17]}  Kd6 {[%clk 0:00:33]} 44. Kc3 {[%clk 0:00:17]}  Kc5 {[%clk 0:00:33]} 45. a4 {[%clk 0:00:16]}  d4+ {[%clk 0:00:33]} 46. Kd3 {[%clk 0:00:15]}  Kd5 {[%clk 0:00:32]} 47. a5 {[%clk 0:00:14]}  Rb3+ {[%clk 0:00:32]} 48. Kd2 {[%clk 0:00:14]}  Kc4 {[%clk 0:00:33]} 49. a6 {[%clk 0:00:13]}  Rb2 {[%clk 0:00:33]} 50. Kc1 {[%clk 0:00:10]}  Ra2 {[%clk 0:00:33]} 0-1


[Site "https://www.chess.com"]

[Event "Titled Tuesday Blitz February 22 Early 2022"]
[White "Martin, Lewis"]
[Black "Bodnar, Nikolay"]
[WhiteFideId "410551"]
[BlackFideId "14106469"]
[WhiteElo "2145"]
[BlackElo "2296"]
[Result "1-0"]
[Round "06"]
[TimeControl "180+1"]
[Date "2022.02.22"]
[WhiteClock "0:00:01"]
[BlackClock "0:00:02"]

1. e4 {[%clk 0:03:00]}  e5 {[%clk 0:02:59]} 2. Nf3 {[%clk 0:03:01]}  Nc6 {[%clk 0:03:00]} 3. Bb5 {[%clk 0:03:01]}  Nf6 {[%clk 0:02:58]} 4. Nc3 {[%clk 0:02:55]}  Bc5 {[%clk 0:02:46]} 5. O-O {[%clk 0:02:53]}  O-O {[%clk 0:02:36]} 6. d3 {[%clk 0:02:46]}  Nd4 {[%clk 0:02:11]} 7. Nxe5 {[%clk 0:02:35]}  d6 {[%clk 0:02:11]} 8. Nc4 {[%clk 0:02:22]}  a6 {[%clk 0:02:02]} 9. Ba4 {[%clk 0:02:21]}  b5 {[%clk 0:02:02]} 10. Bb3 {[%clk 0:02:20]}  bxc4 {[%clk 0:01:59]} 11. Bxc4 {[%clk 0:02:17]}  Bg4 {[%clk 0:01:47]} 12. Qd2 {[%clk 0:02:14]}  Qd7 {[%clk 0:01:39]} 13. Nd5 {[%clk 0:02:03]}  Nxd5 {[%clk 0:01:34]} 14. Bxd5 {[%clk 0:02:03]}  c6 {[%clk 0:01:25]} 15. Bb3 {[%clk 0:02:02]}  Bf3 {[%clk 0:01:10]} 16. h3 {[%clk 0:01:51]}  Ne2+ {[%clk 0:00:39]} 17. Kh2 {[%clk 0:01:50]}  Bd4 {[%clk 0:00:38]} 18. gxf3 {[%clk 0:01:39]}  Nf4 {[%clk 0:00:37]} 19. Qxf4 {[%clk 0:01:37]}  Be5 {[%clk 0:00:38]} 20. Rg1 {[%clk 0:01:33]}  Kh8 {[%clk 0:00:34]} 21. Qxe5 {[%clk 0:01:22]}  dxe5 {[%clk 0:00:35]} 22. Be3 {[%clk 0:01:18]}  f5 {[%clk 0:00:35]} 23. c3 {[%clk 0:00:56]}  Qxd3 {[%clk 0:00:31]} 24. Rad1 {[%clk 0:00:50]}  Qe2 {[%clk 0:00:26]} 25. Rd7 {[%clk 0:00:49]}  Rg8 {[%clk 0:00:15]} 26. Bxg8 {[%clk 0:00:45]}  Rxg8 {[%clk 0:00:16]} 27. exf5 {[%clk 0:00:44]}  Qxf3 {[%clk 0:00:16]} 28. Rf7 {[%clk 0:00:34]}  Qh5 {[%clk 0:00:15]} 29. Rc7 {[%clk 0:00:21]}  Qxf5 {[%clk 0:00:15]} 30. Rxc6 {[%clk 0:00:22]}  a5 {[%clk 0:00:14]} 31. Rc7 {[%clk 0:00:17]}  a4 {[%clk 0:00:13]} 32. Ra7 {[%clk 0:00:17]}  Qe4 {[%clk 0:00:12]} 33. b3 {[%clk 0:00:15]}  axb3 {[%clk 0:00:11]} 34. axb3 {[%clk 0:00:16]}  Qc2 {[%clk 0:00:09]} 35. b4 {[%clk 0:00:14]}  Qxc3 {[%clk 0:00:09]} 36. b5 {[%clk 0:00:14]}  e4 {[%clk 0:00:06]} 37. b6 {[%clk 0:00:12]}  Qe5+ {[%clk 0:00:06]} 38. Rg3 {[%clk 0:00:12]}  h5 {[%clk 0:00:03]} 39. h4 {[%clk 0:00:11]}  Qf6 {[%clk 0:00:03]} 40. Rg5 {[%clk 0:00:11]}  Qd6+ {[%clk 0:00:03]} 41. Kg2 {[%clk 0:00:09]}  g6 {[%clk 0:00:02]} 42. Ra4 {[%clk 0:00:07]}  Re8 {[%clk 0:00:02]} 43. Rd4 {[%clk 0:00:04]}  Qf6 {[%clk 0:00:02]} 44. Rd7 {[%clk 0:00:01]}  Qf3+ {[%clk 0:00:02]} 45. Kh2 {[%clk 0:00:01]} 1-0


[Site "https://www.chess.com"]

[Event "Titled Tuesday Blitz February 22 Early 2022"]
[White "Matveeva, Olga"]
[Black "Nithyalakshmi, Sivanesan"]
[WhiteFideId "24107018"]
[BlackFideId "5706955"]
[WhiteElo "2083"]
[BlackElo "1815"]
[Result "1-0"]
[Round "06"]
[TimeControl "180+1"]
[Date "2022.02.22"]
[WhiteClock "0:00:56"]
[BlackClock "0:00:16"]

1. e4 {[%clk 0:03:00]}  d6 {[%clk 0:02:56]} 2. d4 {[%clk 0:02:59]}  g6 {[%clk 0:02:55]} 3. Nf3 {[%clk 0:02:46]}  Bg7 {[%clk 0:02:55]} 4. Nc3 {[%clk 0:02:38]}  Nd7 {[%clk 0:02:51]} 5. Be3 {[%clk 0:02:31]}  b6 {[%clk 0:02:51]} 6. Qd2 {[%clk 0:02:31]}  Bb7 {[%clk 0:02:50]} 7. O-O-O {[%clk 0:02:28]}  h6 {[%clk 0:02:44]} 8. h4 {[%clk 0:02:27]}  e6 {[%clk 0:02:44]} 9. h5 {[%clk 0:02:26]}  g5 {[%clk 0:02:44]} 10. Be2 {[%clk 0:02:21]}  Ne7 {[%clk 0:02:43]} 11. Ne1 {[%clk 0:02:11]}  a6 {[%clk 0:02:42]} 12. f4 {[%clk 0:02:10]}  gxf4 {[%clk 0:02:35]} 13. Bxf4 {[%clk 0:02:11]}  b5 {[%clk 0:02:33]} 14. Bf3 {[%clk 0:02:00]}  Nb6 {[%clk 0:02:31]} 15. Kb1 {[%clk 0:01:52]}  Nc4 {[%clk 0:02:18]} 16. Qf2 {[%clk 0:01:52]}  Qd7 {[%clk 0:02:02]} 17. e5 {[%clk 0:01:43]}  d5 {[%clk 0:02:00]} 18. Nd3 {[%clk 0:01:38]}  O-O-O {[%clk 0:01:49]} 19. Nc5 {[%clk 0:01:38]}  Qc6 {[%clk 0:01:50]} 20. g4 {[%clk 0:01:32]}  b4 {[%clk 0:01:43]} 21. N3a4 {[%clk 0:01:30]}  Qb5 {[%clk 0:01:28]} 22. g5 {[%clk 0:01:23]}  Nf5 {[%clk 0:01:19]} 23. g6 {[%clk 0:01:18]}  Rdf8 {[%clk 0:00:46]} 24. Nxb7 {[%clk 0:01:13]}  Qxa4 {[%clk 0:00:40]} 25. Nc5 {[%clk 0:01:12]}  Qc6 {[%clk 0:00:37]} 26. Qe2 {[%clk 0:01:07]}  fxg6 {[%clk 0:00:36]} 27. Qxc4 {[%clk 0:01:05]}  dxc4 {[%clk 0:00:27]} 28. Bxc6 {[%clk 0:01:04]}  Ne7 {[%clk 0:00:27]} 29. Bb7+ {[%clk 0:01:02]}  Kb8 {[%clk 0:00:27]} 30. Be3 {[%clk 0:01:00]}  Rd8 {[%clk 0:00:20]} 31. Bxa6 {[%clk 0:00:58]}  Nf5 {[%clk 0:00:19]} 32. Bf2 {[%clk 0:00:56]}  Rde8 {[%clk 0:00:16]} 33. Bxc4 {[%clk 0:00:56]} 1-0


[Site "https://www.chess.com"]

[Event "Titled Tuesday Blitz February 22 Early 2022"]
[White "Medeiros Jr, Francisco De Assis"]
[Black "Kazancev, Valerij M"]
[WhiteFideId "2114267"]
[BlackFideId "4179609"]
[WhiteElo "1998"]
[BlackElo "2462"]
[Result "0-1"]
[Round "06"]
[TimeControl "180+1"]
[Date "2022.02.22"]
[WhiteClock "0:00:10"]
[BlackClock "0:00:43"]

1. d4 {[%clk 0:03:00]}  Nf6 {[%clk 0:02:59]} 2. Nf3 {[%clk 0:03:01]}  b5 {[%clk 0:02:59]} 3. Bg5 {[%clk 0:03:00]}  e6 {[%clk 0:02:56]} 4. Nbd2 {[%clk 0:03:00]}  a6 {[%clk 0:02:56]} 5. e4 {[%clk 0:03:00]}  h6 {[%clk 0:02:56]} 6. Bh4 {[%clk 0:03:00]}  d6 {[%clk 0:02:48]} 7. Bd3 {[%clk 0:02:56]}  g5 {[%clk 0:02:48]} 8. Bg3 {[%clk 0:02:56]}  Nh5 {[%clk 0:02:48]} 9. O-O {[%clk 0:02:54]}  Bg7 {[%clk 0:02:47]} 10. c3 {[%clk 0:02:53]}  Nxg3 {[%clk 0:02:46]} 11. fxg3 {[%clk 0:02:46]}  O-O {[%clk 0:02:46]} 12. a4 {[%clk 0:02:45]}  bxa4 {[%clk 0:02:42]} 13. Rxa4 {[%clk 0:02:46]}  f5 {[%clk 0:02:42]} 14. exf5 {[%clk 0:02:33]}  exf5 {[%clk 0:02:42]} 15. Qc2 {[%clk 0:02:33]}  Nc6 {[%clk 0:02:31]} 16. Raa1 {[%clk 0:02:21]}  Kh8 {[%clk 0:02:29]} 17. Rfe1 {[%clk 0:01:56]}  f4 {[%clk 0:02:01]} 18. gxf4 {[%clk 0:01:29]}  g4 {[%clk 0:02:00]} 19. Be4 {[%clk 0:01:23]}  Bd7 {[%clk 0:01:59]} 20. Ne5 {[%clk 0:01:08]}  dxe5 {[%clk 0:01:54]} 21. fxe5 {[%clk 0:01:09]}  g3 {[%clk 0:01:39]} 22. Nf3 {[%clk 0:01:00]}  gxh2+ {[%clk 0:01:38]} 23. Kh1 {[%clk 0:01:01]}  Rf4 {[%clk 0:01:19]} 24. e6 {[%clk 0:01:00]}  Be8 {[%clk 0:01:18]} 25. d5 {[%clk 0:01:00]}  Ne7 {[%clk 0:01:05]} 26. Qd2 {[%clk 0:00:53]}  Rxe4 {[%clk 0:01:05]} 27. Rxe4 {[%clk 0:00:54]}  Qxd5 {[%clk 0:01:05]} 28. Qe2 {[%clk 0:00:26]}  Bc6 {[%clk 0:01:01]} 29. Rg4 {[%clk 0:00:20]}  Rf8 {[%clk 0:01:00]} 30. Rf1 {[%clk 0:00:18]}  Rf6 {[%clk 0:00:57]} 31. b3 {[%clk 0:00:14]}  Rxe6 {[%clk 0:00:57]} 32. Qf2 {[%clk 0:00:14]}  Rf6 {[%clk 0:00:56]} 33. Qg3 {[%clk 0:00:14]}  Qf7 {[%clk 0:00:51]} 34. Kxh2 {[%clk 0:00:14]}  Nf5 {[%clk 0:00:51]} 35. Qh3 {[%clk 0:00:12]}  Ne3 {[%clk 0:00:50]} 36. Ng5 {[%clk 0:00:12]}  Nxf1+ {[%clk 0:00:48]} 37. Kg1 {[%clk 0:00:11]}  Qe7 {[%clk 0:00:45]} 38. Re4 {[%clk 0:00:10]}  Bxe4 {[%clk 0:00:44]} 39. Qc8+ {[%clk 0:00:10]}  Rf8 {[%clk 0:00:43]} 0-1


[Site "https://www.chess.com"]

[Event "Titled Tuesday Blitz February 22 Early 2022"]
[White "Mekhitarian, Krikor Sevag"]
[Black "Liyanage, Ranindu Dilshan"]
[WhiteFideId "2107660"]
[BlackFideId "9915834"]
[WhiteElo "2598"]
[BlackElo "1858"]
[Result "0-1"]
[Round "06"]
[TimeControl "180+1"]
[Date "2022.02.22"]
[WhiteClock "0:00:02"]
[BlackClock "0:00:07"]

1. e4 {[%clk 0:03:00]}  e6 {[%clk 0:02:58]} 2. d3 {[%clk 0:02:57]}  d5 {[%clk 0:02:58]} 3. Nd2 {[%clk 0:02:57]}  Nf6 {[%clk 0:02:57]} 4. g3 {[%clk 0:02:55]}  Be7 {[%clk 0:02:58]} 5. Bg2 {[%clk 0:02:55]}  O-O {[%clk 0:02:58]} 6. f4 {[%clk 0:02:55]}  c5 {[%clk 0:02:52]} 7. Ngf3 {[%clk 0:02:55]}  Nc6 {[%clk 0:02:53]} 8. O-O {[%clk 0:02:55]}  Rb8 {[%clk 0:02:53]} 9. c3 {[%clk 0:02:40]}  b5 {[%clk 0:02:49]} 10. Qe2 {[%clk 0:02:38]}  b4 {[%clk 0:02:47]} 11. e5 {[%clk 0:02:37]}  Nd7 {[%clk 0:02:47]} 12. c4 {[%clk 0:02:37]}  Nb6 {[%clk 0:02:44]} 13. b3 {[%clk 0:02:36]}  Re8 {[%clk 0:02:43]} 14. Bb2 {[%clk 0:02:35]}  Bb7 {[%clk 0:02:43]} 15. Rae1 {[%clk 0:02:35]}  a5 {[%clk 0:02:37]} 16. g4 {[%clk 0:02:34]}  Nd4 {[%clk 0:02:31]} 17. Nxd4 {[%clk 0:02:28]}  cxd4 {[%clk 0:02:31]} 18. Nf3 {[%clk 0:02:25]}  dxc4 {[%clk 0:02:30]} 19. dxc4 {[%clk 0:02:25]}  d3 {[%clk 0:02:29]} 20. Qf2 {[%clk 0:02:24]}  Qc7 {[%clk 0:02:26]} 21. Rd1 {[%clk 0:02:17]}  Red8 {[%clk 0:02:22]} 22. Kh1 {[%clk 0:02:07]}  Bc5 {[%clk 0:02:16]} 23. Qg3 {[%clk 0:02:07]}  Nd7 {[%clk 0:02:05]} 24. f5 {[%clk 0:02:04]}  Be7 {[%clk 0:02:02]} 25. Rxd3 {[%clk 0:01:55]}  Nc5 {[%clk 0:02:02]} 26. Rdd1 {[%clk 0:01:42]}  Ne4 {[%clk 0:01:59]} 27. Qe1 {[%clk 0:01:34]}  Bc5 {[%clk 0:01:56]} 28. Bd4 {[%clk 0:01:10]}  Bxd4 {[%clk 0:01:48]} 29. Rxd4 {[%clk 0:00:57]}  Rxd4 {[%clk 0:01:44]} 30. Nxd4 {[%clk 0:00:58]}  Qxe5 {[%clk 0:01:44]} 31. Nb5 {[%clk 0:00:50]}  exf5 {[%clk 0:01:38]} 32. gxf5 {[%clk 0:00:21]}  Re8 {[%clk 0:01:37]} 33. f6 {[%clk 0:00:19]}  gxf6 {[%clk 0:01:28]} 34. Qh4 {[%clk 0:00:17]}  Kh8 {[%clk 0:01:27]} 35. Qf4 {[%clk 0:00:09]}  Qc5 {[%clk 0:01:16]} 36. h3 {[%clk 0:00:07]}  Re5 {[%clk 0:01:10]} 37. Kh2 {[%clk 0:00:06]}  f5 {[%clk 0:00:43]} 38. Rd1 {[%clk 0:00:06]}  Qe7 {[%clk 0:00:31]} 39. Rd8+ {[%clk 0:00:03]}  Kg7 {[%clk 0:00:21]} 40. Rd7 {[%clk 0:00:03]}  Qxd7 {[%clk 0:00:19]} 41. Qxe5+ {[%clk 0:00:03]}  f6 {[%clk 0:00:19]} 42. Qf4 {[%clk 0:00:04]}  Bc6 {[%clk 0:00:18]} 43. h4 {[%clk 0:00:02]}  Bxb5 {[%clk 0:00:18]} 44. cxb5 {[%clk 0:00:03]}  Qxb5 {[%clk 0:00:19]} 45. h5 {[%clk 0:00:04]}  h6 {[%clk 0:00:19]} 46. Qc7+ {[%clk 0:00:03]}  Kf8 {[%clk 0:00:19]} 47. Kh1 {[%clk 0:00:03]}  Qe5 {[%clk 0:00:18]} 48. Qc8+ {[%clk 0:00:03]}  Kf7 {[%clk 0:00:18]} 49. Qd7+ {[%clk 0:00:04]}  Kf8 {[%clk 0:00:18]} 50. Qd8+ {[%clk 0:00:04]}  Qe8 {[%clk 0:00:16]} 51. Qxa5 {[%clk 0:00:04]}  Qe7 {[%clk 0:00:12]} 52. Qd5 {[%clk 0:00:01]}  Kg7 {[%clk 0:00:08]} 53. Kg1 {[%clk 0:00:02]}  Qa7+ {[%clk 0:00:07]} 54. Kh2 {[%clk 0:00:02]}  Qc7+ {[%clk 0:00:07]} 55. Kg1 {[%clk 0:00:02]}  Qc1+ {[%clk 0:00:07]} 56. Bf1 {[%clk 0:00:02]}  Qe3+ {[%clk 0:00:07]} 57. Kh1 {[%clk 0:00:01]}  Qf3+ {[%clk 0:00:07]} 58. Kg1 {[%clk 0:00:01]}  Qf2+ {[%clk 0:00:07]} 59. Kh1 {[%clk 0:00:02]}  Ng3# {[%clk 0:00:07]} 0-1


[Site "https://www.chess.com"]